[Event "Titled Tuesday Blitz November 01 Early 2022"]
[White "Bashirli, Saadat"]
[Black "Ginzburg, Yakov"]
[WhiteFideId "13429990"]
[BlackFideId "4157176"]
[WhiteElo "1408"]
[BlackElo "2305"]
[Result "0-1"]
[Round "02"]
[TimeControl "180+1"]
[Date "2022.11.02"]
[WhiteClock "0:00:02"]
[BlackClock "0:00:20"]

1. d4 {[%clk 0:03:00]}  d5 {[%clk 0:02:58]} 2. c4 {[%clk 0:03:00]}  c6 {[%clk 0:02:59]} 3. e3 {[%clk 0:02:58]}  Nf6 {[%clk 0:02:59]} 4. Nc3 {[%clk 0:02:58]}  a6 {[%clk 0:02:58]} 5. Bd3 {[%clk 0:02:56]}  b5 {[%clk 0:02:58]} 6. cxb5 {[%clk 0:02:44]}  cxb5 {[%clk 0:02:54]} 7. a3 {[%clk 0:02:37]}  Bg4 {[%clk 0:02:51]} 8. f3 {[%clk 0:02:36]}  Bh5 {[%clk 0:02:51]} 9. Nge2 {[%clk 0:02:35]}  e6 {[%clk 0:02:51]} 10. O-O {[%clk 0:02:36]}  Bg6 {[%clk 0:02:51]} 11. Qc2 {[%clk 0:02:32]}  Bxd3 {[%clk 0:02:51]} 12. Qxd3 {[%clk 0:02:33]}  Be7 {[%clk 0:02:50]} 13. e4 {[%clk 0:02:33]}  O-O {[%clk 0:02:44]} 14. Bg5 {[%clk 0:02:32]}  Nc6 {[%clk 0:02:39]} 15. Rfd1 {[%clk 0:02:31]}  Rc8 {[%clk 0:02:38]} 16. Rd2 {[%clk 0:02:31]}  h6 {[%clk 0:02:37]} 17. Bf4 {[%clk 0:02:26]}  Qb6 {[%clk 0:02:25]} 18. Rc1 {[%clk 0:02:23]}  Rfd8 {[%clk 0:02:22]} 19. Be3 {[%clk 0:02:22]}  b4 {[%clk 0:02:16]} 20. Na4 {[%clk 0:02:17]}  Qb5 {[%clk 0:02:12]} 21. Qxb5 {[%clk 0:02:15]}  axb5 {[%clk 0:02:13]} 22. Nc5 {[%clk 0:02:15]}  bxa3 {[%clk 0:02:12]} 23. bxa3 {[%clk 0:02:15]}  dxe4 {[%clk 0:02:03]} 24. Nxe4 {[%clk 0:02:09]}  Nxe4 {[%clk 0:02:03]} 25. fxe4 {[%clk 0:02:10]}  Bxa3 {[%clk 0:02:03]} 26. Rb1 {[%clk 0:02:08]}  Na5 {[%clk 0:01:50]} 27. Rxb5 {[%clk 0:02:02]}  Nc4 {[%clk 0:01:50]} 28. Rd3 {[%clk 0:02:02]}  Nxe3 {[%clk 0:01:50]} 29. Rxe3 {[%clk 0:02:03]}  e5 {[%clk 0:01:47]} 30. Rxe5 {[%clk 0:02:01]}  Bb2 {[%clk 0:01:39]} 31. Rd3 {[%clk 0:01:58]}  Rc2 {[%clk 0:01:39]} 32. Kf2 {[%clk 0:01:50]}  Bxd4+ {[%clk 0:01:37]} 33. Kf3 {[%clk 0:01:41]}  Bxe5 {[%clk 0:01:33]} 34. Rxd8+ {[%clk 0:01:41]}  Kh7 {[%clk 0:01:33]} 35. Rd7 {[%clk 0:01:30]}  Kg6 {[%clk 0:01:32]} 36. g3 {[%clk 0:01:29]}  Kf6 {[%clk 0:01:30]} 37. Ra7 {[%clk 0:01:25]}  Rc6 {[%clk 0:01:27]} 38. Ra8 {[%clk 0:01:17]}  h5 {[%clk 0:01:19]} 39. Rh8 {[%clk 0:01:14]}  g6 {[%clk 0:01:16]} 40. Ra8 {[%clk 0:01:09]}  Rb6 {[%clk 0:01:16]} 41. Rc8 {[%clk 0:01:07]}  Rb3+ {[%clk 0:01:15]} 42. Kf2 {[%clk 0:01:07]}  Bb8 {[%clk 0:01:06]} 43. Rc6+ {[%clk 0:01:01]}  Ke5 {[%clk 0:01:06]} 44. Rc4 {[%clk 0:00:44]}  Ba7+ {[%clk 0:01:05]} 45. Kg2 {[%clk 0:00:40]}  Rb2 {[%clk 0:00:57]} 46. Kf3 {[%clk 0:00:38]}  g5 {[%clk 0:00:57]} 47. h3 {[%clk 0:00:13]}  g4+ {[%clk 0:00:57]} 48. hxg4 {[%clk 0:00:14]}  hxg4+ {[%clk 0:00:57]} 49. Kxg4 {[%clk 0:00:15]}  Rxe2 {[%clk 0:00:57]} 50. Rc7 {[%clk 0:00:15]}  Rxe4+ {[%clk 0:00:55]} 51. Kh3 {[%clk 0:00:12]}  Bb8 {[%clk 0:00:44]} 52. Rxf7 {[%clk 0:00:12]}  Kd4 {[%clk 0:00:44]} 53. g4 {[%clk 0:00:11]}  Bf4 {[%clk 0:00:38]} 54. Kh4 {[%clk 0:00:11]}  Be3 {[%clk 0:00:35]} 55. Kh5 {[%clk 0:00:10]}  Re5+ {[%clk 0:00:32]} 56. Rf5 {[%clk 0:00:09]}  Re6 {[%clk 0:00:29]} 57. g5 {[%clk 0:00:09]}  Ke4 {[%clk 0:00:30]} 58. Ra5 {[%clk 0:00:08]}  Re8 {[%clk 0:00:28]} 59. g6 {[%clk 0:00:07]}  Bd4 {[%clk 0:00:27]} 60. g7 {[%clk 0:00:04]}  Bxg7 {[%clk 0:00:26]} 61. Kg6 {[%clk 0:00:04]}  Bd4 {[%clk 0:00:25]} 62. Kf7 {[%clk 0:00:03]}  Rb8 {[%clk 0:00:24]} 63. Ra2 {[%clk 0:00:03]}  Kd5 {[%clk 0:00:23]} 64. Re2 {[%clk 0:00:03]}  Rb7+ {[%clk 0:00:22]} 65. Kg6 {[%clk 0:00:03]}  Be5 {[%clk 0:00:22]} 66. Kf5 {[%clk 0:00:03]}  Rf7+ {[%clk 0:00:21]} 67. Kg6 {[%clk 0:00:04]}  Rf1 {[%clk 0:00:21]} 68. Rd2+ {[%clk 0:00:04]}  Ke6 {[%clk 0:00:21]} 69. Ra2 {[%clk 0:00:05]}  Rg1+ {[%clk 0:00:21]} 70. Kh5 {[%clk 0:00:05]}  Kf5 {[%clk 0:00:21]} 71. Rf2+ {[%clk 0:00:05]}  Bf4 {[%clk 0:00:21]} 72. Rh2 {[%clk 0:00:01]}  Bxh2 {[%clk 0:00:20]} 73. Kh6 {[%clk 0:00:02]}  Be5 {[%clk 0:00:20]} 0-1


[Site "https://www.chess.com"]

[Event "Titled Tuesday Blitz November 01 Early 2022"]
[White "Bordi, Kevin"]
[Black "Nurmanova, Alua"]
[WhiteFideId "621862"]
[BlackFideId "13729390"]
[WhiteElo "2798"]
[BlackElo "2088"]
[Result "1-0"]
[Round "02"]
[TimeControl "180+1"]
[Date "2022.11.02"]
[WhiteClock "0:01:09"]
[BlackClock "0:00:21"]

1. e4 {[%clk 0:03:00]}  c5 {[%clk 0:02:59]} 2. Nf3 {[%clk 0:03:01]}  d6 {[%clk 0:03:00]} 3. d4 {[%clk 0:03:01]}  cxd4 {[%clk 0:03:00]} 4. Nxd4 {[%clk 0:03:02]}  Nf6 {[%clk 0:03:01]} 5. Nc3 {[%clk 0:03:02]}  a6 {[%clk 0:03:01]} 6. Rg1 {[%clk 0:03:03]}  e5 {[%clk 0:02:57]} 7. Nb3 {[%clk 0:03:03]}  Be6 {[%clk 0:02:31]} 8. g4 {[%clk 0:03:03]}  Nc6 {[%clk 0:02:26]} 9. g5 {[%clk 0:03:03]}  Nd7 {[%clk 0:02:26]} 10. Be3 {[%clk 0:03:03]}  Qc7 {[%clk 0:02:17]} 11. Qd2 {[%clk 0:02:57]}  b5 {[%clk 0:02:14]} 12. O-O-O {[%clk 0:02:57]}  Be7 {[%clk 0:02:09]} 13. Kb1 {[%clk 0:02:56]}  O-O {[%clk 0:02:07]} 14. h4 {[%clk 0:02:48]}  Rfb8 {[%clk 0:01:57]} 15. h5 {[%clk 0:02:47]}  Nf8 {[%clk 0:01:48]} 16. Nd5 {[%clk 0:02:45]}  Bxd5 {[%clk 0:01:48]} 17. Qxd5 {[%clk 0:02:46]}  Nb4 {[%clk 0:01:44]} 18. Qd2 {[%clk 0:02:46]}  a5 {[%clk 0:01:43]} 19. f4 {[%clk 0:02:42]}  exf4 {[%clk 0:01:38]} 20. Bxf4 {[%clk 0:02:43]}  Ne6 {[%clk 0:01:38]} 21. Be3 {[%clk 0:02:40]}  a4 {[%clk 0:01:34]} 22. Qxb4 {[%clk 0:02:37]}  axb3 {[%clk 0:01:34]} 23. Qxb3 {[%clk 0:02:38]}  Nc5 {[%clk 0:01:29]} 24. Bxc5 {[%clk 0:02:36]}  Qxc5 {[%clk 0:01:30]} 25. Bd3 {[%clk 0:02:25]}  Bxg5 {[%clk 0:01:27]} 26. Rdf1 {[%clk 0:02:23]}  Ra7 {[%clk 0:01:24]} 27. Rg2 {[%clk 0:02:17]}  h6 {[%clk 0:01:21]} 28. Rgf2 {[%clk 0:02:10]}  Rbb7 {[%clk 0:01:19]} 29. Rf5 {[%clk 0:02:09]}  Qd4 {[%clk 0:01:14]} 30. Qd5 {[%clk 0:02:00]}  Qa4 {[%clk 0:01:08]} 31. Qb3 {[%clk 0:01:52]}  Qd4 {[%clk 0:01:07]} 32. Rxb5 {[%clk 0:01:29]}  Rxb5 {[%clk 0:01:05]} 33. Bxb5 {[%clk 0:01:30]}  Qxe4 {[%clk 0:01:00]} 34. a4 {[%clk 0:01:29]}  Bf6 {[%clk 0:00:44]} 35. Bd3 {[%clk 0:01:27]}  Qb7 {[%clk 0:00:40]} 36. Qxb7 {[%clk 0:01:23]}  Rxb7 {[%clk 0:00:41]} 37. b3 {[%clk 0:01:23]}  Bc3 {[%clk 0:00:38]} 38. Bc4 {[%clk 0:01:20]}  Kf8 {[%clk 0:00:35]} 39. Rf3 {[%clk 0:01:20]}  Bf6 {[%clk 0:00:33]} 40. a5 {[%clk 0:01:19]}  Bd4 {[%clk 0:00:28]} 41. a6 {[%clk 0:01:18]}  Ra7 {[%clk 0:00:28]} 42. c3 {[%clk 0:01:17]}  Bb6 {[%clk 0:00:27]} 43. Kc2 {[%clk 0:01:16]}  Ke8 {[%clk 0:00:26]} 44. b4 {[%clk 0:01:15]}  g6 {[%clk 0:00:24]} 45. Rf6 {[%clk 0:01:09]}  Ke7 {[%clk 0:00:21]} 46. Rxf7+ {[%clk 0:01:09]} 1-0


[Site "https://www.chess.com"]

[Event "Titled Tuesday Blitz November 01 Early 2022"]
[White "Bortnyk, Olexandr"]
[Black "Garcia, Erick"]
[WhiteFideId "14120828"]
[BlackFideId "2058880"]
[WhiteElo "2723"]
[BlackElo "2202"]
[Result "1-0"]
[Round "02"]
[TimeControl "180+1"]
[Date "2022.11.01"]
[WhiteClock "0:00:48"]
[BlackClock "0:01:11"]

1. e4 {[%clk 0:03:00]}  e5 {[%clk 0:02:59]} 2. Nf3 {[%clk 0:02:58]}  Nc6 {[%clk 0:03:00]} 3. Bb5 {[%clk 0:02:58]}  a6 {[%clk 0:02:59]} 4. Ba4 {[%clk 0:02:59]}  Nf6 {[%clk 0:02:59]} 5. Qe2 {[%clk 0:02:59]}  b5 {[%clk 0:02:58]} 6. Bb3 {[%clk 0:02:58]}  Bc5 {[%clk 0:02:58]} 7. c3 {[%clk 0:02:56]}  d6 {[%clk 0:02:54]} 8. h3 {[%clk 0:02:55]}  O-O {[%clk 0:02:52]} 9. d3 {[%clk 0:02:55]}  Be6 {[%clk 0:02:51]} 10. Nbd2 {[%clk 0:02:54]}  Re8 {[%clk 0:02:48]} 11. Nf1 {[%clk 0:02:52]}  h6 {[%clk 0:02:43]} 12. g4 {[%clk 0:02:48]}  Nh7 {[%clk 0:02:31]} 13. Ng3 {[%clk 0:02:46]}  d5 {[%clk 0:02:31]} 14. O-O {[%clk 0:02:12]}  a5 {[%clk 0:02:10]} 15. Be3 {[%clk 0:02:02]}  Bf8 {[%clk 0:02:07]} 16. Rfd1 {[%clk 0:01:47]}  d4 {[%clk 0:02:04]} 17. Bxe6 {[%clk 0:01:43]}  Rxe6 {[%clk 0:02:03]} 18. cxd4 {[%clk 0:01:43]}  Nxd4 {[%clk 0:02:00]} 19. Nxd4 {[%clk 0:01:35]}  exd4 {[%clk 0:02:00]} 20. Bd2 {[%clk 0:01:36]}  c5 {[%clk 0:01:59]} 21. Rac1 {[%clk 0:01:31]}  Rc8 {[%clk 0:01:59]} 22. b3 {[%clk 0:01:30]}  Rec6 {[%clk 0:01:58]} 23. e5 {[%clk 0:01:28]}  Qd5 {[%clk 0:01:54]} 24. Qe4 {[%clk 0:01:28]}  Qxe4 {[%clk 0:01:52]} 25. Nxe4 {[%clk 0:01:28]}  Ra8 {[%clk 0:01:47]} 26. Rc2 {[%clk 0:01:19]}  a4 {[%clk 0:01:42]} 27. Rdc1 {[%clk 0:01:17]}  axb3 {[%clk 0:01:40]} 28. axb3 {[%clk 0:01:17]}  Rac8 {[%clk 0:01:39]} 29. f4 {[%clk 0:01:12]}  Be7 {[%clk 0:01:39]} 30. Bb4 {[%clk 0:01:07]}  Nf8 {[%clk 0:01:34]} 31. Kg2 {[%clk 0:01:00]}  Nd7 {[%clk 0:01:33]} 32. Kf3 {[%clk 0:00:57]}  Bf8 {[%clk 0:01:30]} 33. h4 {[%clk 0:00:55]}  Nb6 {[%clk 0:01:23]} 34. Bxc5 {[%clk 0:00:53]}  Nc4 {[%clk 0:01:11]} 35. bxc4 {[%clk 0:00:48]} 1-0


[Site "https://www.chess.com"]

[Event "Titled Tuesday Blitz November 01 Early 2022"]
[White "Brown, Andrew"]
[Black "Safin, Robert"]
[WhiteFideId "3206513"]
[BlackFideId "34189120"]
[WhiteElo "2245"]
[BlackElo "2219"]
[Result "1-0"]
[Round "02"]
[TimeControl "180+1"]
[Date "2022.11.02"]
[WhiteClock "0:00:09"]
[BlackClock "0:00:01"]

1. d4 {[%clk 0:02:58]}  Nf6 {[%clk 0:02:59]} 2. c4 {[%clk 0:02:57]}  e6 {[%clk 0:02:58]} 3. Nc3 {[%clk 0:02:58]}  Bb4 {[%clk 0:02:57]} 4. Nf3 {[%clk 0:02:57]}  O-O {[%clk 0:02:56]} 5. Bg5 {[%clk 0:02:57]}  c5 {[%clk 0:02:51]} 6. d5 {[%clk 0:02:55]}  b5 {[%clk 0:02:47]} 7. cxb5 {[%clk 0:02:49]}  a6 {[%clk 0:02:34]} 8. e4 {[%clk 0:02:27]}  exd5 {[%clk 0:02:20]} 9. e5 {[%clk 0:01:51]}  d4 {[%clk 0:02:07]} 10. Nxd4 {[%clk 0:01:48]}  cxd4 {[%clk 0:01:06]} 11. Qxd4 {[%clk 0:01:47]}  Qe7 {[%clk 0:01:06]} 12. Bd3 {[%clk 0:01:13]}  Bxc3+ {[%clk 0:00:15]} 13. bxc3 {[%clk 0:01:10]}  d6 {[%clk 0:00:15]} 14. Bxf6 {[%clk 0:00:49]}  gxf6 {[%clk 0:00:14]} 15. O-O {[%clk 0:00:25]}  Qxe5 {[%clk 0:00:05]} 16. Qh4 {[%clk 0:00:26]}  f5 {[%clk 0:00:05]} 17. Rae1 {[%clk 0:00:25]}  Qg7 {[%clk 0:00:05]} 18. Re3 {[%clk 0:00:23]}  Kh8 {[%clk 0:00:03]} 19. Rg3 {[%clk 0:00:23]}  Qe5 {[%clk 0:00:03]} 20. Qh6 {[%clk 0:00:16]}  Nd7 {[%clk 0:00:03]} 21. f4 {[%clk 0:00:11]}  Qf6 {[%clk 0:00:02]} 22. Qh5 {[%clk 0:00:09]}  axb5 {[%clk 0:00:02]} 23. Bxf5 {[%clk 0:00:09]}  h6 {[%clk 0:00:01]} 24. Rh3 {[%clk 0:00:09]} 1-0


[Site "https://www.chess.com"]

[Event "Titled Tuesday Blitz November 01 Early 2022"]
[White "Buscar, Michael"]
[Black "Azarov, Sergei"]
[WhiteFideId "2603616"]
[BlackFideId "13501470"]
[WhiteElo "2010"]
[BlackElo "2494"]
[Result "0-1"]
[Round "02"]
[TimeControl "180+1"]
[Date "2022.11.02"]
[WhiteClock "0:00:19"]
[BlackClock "0:01:18"]

1. d4 {[%clk 0:03:00]}  Nf6 {[%clk 0:02:55]} 2. c4 {[%clk 0:02:58]}  e6 {[%clk 0:02:55]} 3. Nc3 {[%clk 0:02:55]}  Bb4 {[%clk 0:02:54]} 4. e3 {[%clk 0:02:54]}  O-O {[%clk 0:02:53]} 5. Bd3 {[%clk 0:02:52]}  d5 {[%clk 0:02:50]} 6. Ne2 {[%clk 0:02:52]}  dxc4 {[%clk 0:02:48]} 7. Bxc4 {[%clk 0:02:52]}  c5 {[%clk 0:02:48]} 8. a3 {[%clk 0:02:51]}  Bxc3+ {[%clk 0:02:48]} 9. Nxc3 {[%clk 0:02:46]}  cxd4 {[%clk 0:02:45]} 10. exd4 {[%clk 0:02:46]}  Nc6 {[%clk 0:02:45]} 11. Be3 {[%clk 0:02:45]}  b6 {[%clk 0:02:41]} 12. O-O {[%clk 0:02:27]}  Bb7 {[%clk 0:02:41]} 13. Qd3 {[%clk 0:02:24]}  Rc8 {[%clk 0:02:37]} 14. Rad1 {[%clk 0:02:21]}  h6 {[%clk 0:02:26]} 15. Ba2 {[%clk 0:02:11]}  Ne7 {[%clk 0:02:25]} 16. Bb1 {[%clk 0:02:08]}  Nf5 {[%clk 0:02:17]} 17. Bf4 {[%clk 0:02:00]}  Nd5 {[%clk 0:02:05]} 18. Be5 {[%clk 0:01:37]}  Qg5 {[%clk 0:02:04]} 19. Ne4 {[%clk 0:01:25]}  Qg6 {[%clk 0:02:03]} 20. Ng3 {[%clk 0:01:20]}  Nxg3 {[%clk 0:01:59]} 21. Bxg3 {[%clk 0:01:20]}  Qxd3 {[%clk 0:01:57]} 22. Bxd3 {[%clk 0:01:20]}  f6 {[%clk 0:01:49]} 23. f4 {[%clk 0:01:16]}  Ne3 {[%clk 0:01:46]} 24. Rd2 {[%clk 0:01:11]}  Nxf1 {[%clk 0:01:45]} 25. Kxf1 {[%clk 0:01:10]}  Rc1+ {[%clk 0:01:45]} 26. Kf2 {[%clk 0:01:07]}  f5 {[%clk 0:01:41]} 27. Bh4 {[%clk 0:01:01]}  Kf7 {[%clk 0:01:38]} 28. h3 {[%clk 0:00:55]}  Rfc8 {[%clk 0:01:34]} 29. Ke3 {[%clk 0:00:44]}  Rg1 {[%clk 0:01:25]} 30. g4 {[%clk 0:00:19]}  Rh1 {[%clk 0:01:18]} 0-1


[Site "https://www.chess.com"]

[Event "Titled Tuesday Blitz November 01 Early 2022"]
[White "Caruana, Fabiano"]
[Black "Grover, Sahaj"]
[WhiteFideId "2020009"]
[BlackFideId "5021103"]
[WhiteElo "2847"]
[BlackElo "2432"]
[Result "1-0"]
[Round "02"]
[TimeControl "180+1"]
[Date "2022.11.01"]
[WhiteClock "0:01:38"]
[BlackClock "0:00:55"]

1. Nc3 {[%clk 0:03:00]}  e5 {[%clk 0:02:58]} 2. Nf3 {[%clk 0:03:00]}  Nc6 {[%clk 0:02:58]} 3. d4 {[%clk 0:03:00]}  exd4 {[%clk 0:02:56]} 4. Nxd4 {[%clk 0:03:01]}  Nge7 {[%clk 0:02:52]} 5. Bf4 {[%clk 0:02:56]}  d6 {[%clk 0:02:51]} 6. e4 {[%clk 0:02:54]}  g6 {[%clk 0:02:50]} 7. Qd2 {[%clk 0:02:50]}  Bg7 {[%clk 0:02:48]} 8. Nf3 {[%clk 0:02:46]}  Bg4 {[%clk 0:02:45]} 9. O-O-O {[%clk 0:02:44]}  Qd7 {[%clk 0:02:35]} 10. Kb1 {[%clk 0:02:44]}  a6 {[%clk 0:02:32]} 11. Be2 {[%clk 0:02:40]}  O-O {[%clk 0:02:26]} 12. h3 {[%clk 0:02:39]}  Be6 {[%clk 0:02:19]} 13. h4 {[%clk 0:02:38]}  h5 {[%clk 0:02:14]} 14. Ng5 {[%clk 0:02:36]}  Nd4 {[%clk 0:01:58]} 15. Bd3 {[%clk 0:02:34]}  c5 {[%clk 0:01:55]} 16. f3 {[%clk 0:02:27]}  b5 {[%clk 0:01:50]} 17. Ne2 {[%clk 0:02:21]}  Ndc6 {[%clk 0:01:40]} 18. c3 {[%clk 0:02:03]}  b4 {[%clk 0:01:38]} 19. c4 {[%clk 0:01:55]}  Ne5 {[%clk 0:01:29]} 20. Bxe5 {[%clk 0:01:50]}  Bxe5 {[%clk 0:01:22]} 21. f4 {[%clk 0:01:45]}  Bg7 {[%clk 0:01:23]} 22. f5 {[%clk 0:01:45]}  gxf5 {[%clk 0:01:22]} 23. Nf4 {[%clk 0:01:46]}  Ng6 {[%clk 0:00:59]} 24. Ngxe6 {[%clk 0:01:42]}  fxe6 {[%clk 0:00:56]} 25. Nxg6 {[%clk 0:01:41]}  Rf6 {[%clk 0:00:57]} 26. exf5 {[%clk 0:01:40]}  exf5 {[%clk 0:00:56]} 27. Nf4 {[%clk 0:01:39]}  a5 {[%clk 0:00:55]} 28. Nxh5 {[%clk 0:01:38]} 1-0


[Site "https://www.chess.com"]

[Event "Titled Tuesday Blitz November 01 Early 2022"]
[White "Colas, Joshua"]
[Black "Dubov, Daniil"]
[WhiteFideId "2044447"]
[BlackFideId "24126055"]
[WhiteElo "2347"]
[BlackElo "2791"]
[Result "0-1"]
[Round "02"]
[TimeControl "180+1"]
[Date "2022.11.01"]
[WhiteClock "0:00:04"]
[BlackClock "0:01:39"]

1. Nf3 {[%clk 0:03:00]}  d5 {[%clk 0:03:00]} 2. g3 {[%clk 0:02:52]}  Nf6 {[%clk 0:02:59]} 3. Bg2 {[%clk 0:02:52]}  c5 {[%clk 0:02:59]} 4. O-O {[%clk 0:02:53]}  g6 {[%clk 0:02:59]} 5. b3 {[%clk 0:02:45]}  Nc6 {[%clk 0:02:42]} 6. Bb2 {[%clk 0:02:41]}  d4 {[%clk 0:02:43]} 7. c3 {[%clk 0:02:35]}  Bg7 {[%clk 0:02:40]} 8. cxd4 {[%clk 0:02:35]}  cxd4 {[%clk 0:02:40]} 9. d3 {[%clk 0:02:27]}  O-O {[%clk 0:02:35]} 10. b4 {[%clk 0:02:24]}  Qb6 {[%clk 0:02:21]} 11. a3 {[%clk 0:02:12]}  Nd5 {[%clk 0:02:21]} 12. Nbd2 {[%clk 0:02:10]}  Nc3 {[%clk 0:02:21]} 13. Bxc3 {[%clk 0:01:51]}  dxc3 {[%clk 0:02:22]} 14. Nc4 {[%clk 0:01:52]}  Qb5 {[%clk 0:02:16]} 15. Qc2 {[%clk 0:01:47]}  Be6 {[%clk 0:02:15]} 16. Ne3 {[%clk 0:01:43]}  a5 {[%clk 0:02:15]} 17. a4 {[%clk 0:01:39]}  Qxb4 {[%clk 0:02:12]} 18. Rfb1 {[%clk 0:01:39]}  Qc5 {[%clk 0:02:11]} 19. Rb5 {[%clk 0:01:03]}  Qa7 {[%clk 0:02:10]} 20. Rc1 {[%clk 0:00:44]}  Rfc8 {[%clk 0:02:01]} 21. Qb1 {[%clk 0:00:36]}  Rab8 {[%clk 0:01:58]} 22. Nc2 {[%clk 0:00:27]}  Bd7 {[%clk 0:01:54]} 23. e3 {[%clk 0:00:12]}  Nd8 {[%clk 0:01:51]} 24. Rb6 {[%clk 0:00:09]}  Bxa4 {[%clk 0:01:50]} 25. Ncd4 {[%clk 0:00:09]}  c2 {[%clk 0:01:44]} 26. Qb2 {[%clk 0:00:08]}  Nc6 {[%clk 0:01:43]} 27. Nxc6 {[%clk 0:00:04]}  Rxc6 {[%clk 0:01:39]} 0-1


[Site "https://www.chess.com"]

[Event "Titled Tuesday Blitz November 01 Early 2022"]
[White "Cramling Bellon, Anna"]
[Black "Celestino, Rafael Teixeira"]
[WhiteFideId "32009232"]
[BlackFideId "2108925"]
[WhiteElo "1972"]
[BlackElo "2445"]
[Result "0-1"]
[Round "02"]
[TimeControl "180+1"]
[Date "2022.11.02"]
[WhiteClock "0:00:03"]
[BlackClock "0:01:39"]

1. d4 {[%clk 0:03:00]}  Nf6 {[%clk 0:02:58]} 2. c4 {[%clk 0:02:56]}  e6 {[%clk 0:02:58]} 3. Nc3 {[%clk 0:02:55]}  d5 {[%clk 0:02:59]} 4. cxd5 {[%clk 0:02:54]}  exd5 {[%clk 0:03:00]} 5. Bg5 {[%clk 0:02:54]}  Bb4 {[%clk 0:03:00]} 6. e3 {[%clk 0:02:54]}  h6 {[%clk 0:03:00]} 7. Bh4 {[%clk 0:02:53]}  g5 {[%clk 0:02:59]} 8. Bg3 {[%clk 0:02:53]}  Ne4 {[%clk 0:03:00]} 9. Qc2 {[%clk 0:02:43]}  Bf5 {[%clk 0:02:58]} 10. Bd3 {[%clk 0:02:43]}  Qf6 {[%clk 0:02:52]} 11. Be5 {[%clk 0:02:32]}  Qc6 {[%clk 0:02:45]} 12. Bxh8 {[%clk 0:02:03]}  Nxc3 {[%clk 0:02:44]} 13. Bxf5 {[%clk 0:01:06]}  Ne4+ {[%clk 0:02:43]} 14. Kd1 {[%clk 0:01:06]}  Qb5 {[%clk 0:02:43]} 15. Nf3 {[%clk 0:00:49]}  Nd6 {[%clk 0:02:41]} 16. Bd3 {[%clk 0:00:47]}  Qb6 {[%clk 0:02:33]} 17. Be5 {[%clk 0:00:45]}  Nc6 {[%clk 0:02:29]} 18. Nd2 {[%clk 0:00:35]}  O-O-O {[%clk 0:02:22]} 19. a3 {[%clk 0:00:28]}  Ba5 {[%clk 0:02:21]} 20. Nb3 {[%clk 0:00:22]}  f6 {[%clk 0:02:10]} 21. Bxd6 {[%clk 0:00:20]}  Rxd6 {[%clk 0:02:11]} 22. Nxa5 {[%clk 0:00:21]}  Nxa5 {[%clk 0:02:10]} 23. Ke2 {[%clk 0:00:12]}  Nb3 {[%clk 0:02:08]} 24. Rad1 {[%clk 0:00:11]}  a5 {[%clk 0:02:06]} 25. Bf5+ {[%clk 0:00:12]}  Kb8 {[%clk 0:02:06]} 26. Qd3 {[%clk 0:00:12]}  Rc6 {[%clk 0:02:00]} 27. f3 {[%clk 0:00:06]}  a4 {[%clk 0:01:59]} 28. e4 {[%clk 0:00:05]}  Rc4 {[%clk 0:01:52]} 29. exd5 {[%clk 0:00:05]}  Nxd4+ {[%clk 0:01:50]} 30. Kf2 {[%clk 0:00:04]}  Qxb2+ {[%clk 0:01:49]} 31. Kg3 {[%clk 0:00:04]}  Ne2+ {[%clk 0:01:46]} 32. Kf2 {[%clk 0:00:02]}  Nf4+ {[%clk 0:01:43]} 33. Ke3 {[%clk 0:00:03]}  Nxg2# {[%clk 0:01:39]} 0-1


[Site "https://www.chess.com"]

[Event "Titled Tuesday Blitz November 01 Early 2022"]
[White "De Souza, Cristiano Gomes"]
[Black "Terzi, Alexei"]
[WhiteFideId "2151758"]
[BlackFideId "13505076"]
[WhiteElo "2068"]
[BlackElo "2172"]
[Result "1-0"]
[Round "02"]
[TimeControl "180+1"]
[Date "2022.11.02"]
[WhiteClock "0:00:27"]
[BlackClock "0:00:02"]

1. d4 {[%clk 0:02:53]}  Nf6 {[%clk 0:02:59]} 2. c4 {[%clk 0:02:50]}  c5 {[%clk 0:03:00]} 3. d5 {[%clk 0:02:50]}  b5 {[%clk 0:03:00]} 4. cxb5 {[%clk 0:02:50]}  a6 {[%clk 0:03:00]} 5. bxa6 {[%clk 0:02:51]}  g6 {[%clk 0:03:01]} 6. Nc3 {[%clk 0:02:51]}  Bg7 {[%clk 0:03:01]} 7. Nf3 {[%clk 0:02:51]}  O-O {[%clk 0:03:00]} 8. Rb1 {[%clk 0:02:51]}  Bxa6 {[%clk 0:02:56]} 9. g3 {[%clk 0:02:51]}  d6 {[%clk 0:02:44]} 10. Bg2 {[%clk 0:02:50]}  Bc8 {[%clk 0:02:37]} 11. Nh4 {[%clk 0:02:44]}  Ne8 {[%clk 0:02:18]} 12. Bd2 {[%clk 0:02:43]}  Nc7 {[%clk 0:02:13]} 13. O-O {[%clk 0:02:42]}  Nba6 {[%clk 0:02:13]} 14. b3 {[%clk 0:02:29]}  Nb4 {[%clk 0:02:06]} 15. a4 {[%clk 0:02:23]}  Bb7 {[%clk 0:02:06]} 16. e4 {[%clk 0:02:20]}  Ba6 {[%clk 0:01:43]} 17. Re1 {[%clk 0:02:09]}  Nd3 {[%clk 0:01:42]} 18. Re3 {[%clk 0:02:03]}  c4 {[%clk 0:01:40]} 19. Nf3 {[%clk 0:01:41]}  cxb3 {[%clk 0:01:34]} 20. Bf1 {[%clk 0:01:32]}  Nc5 {[%clk 0:01:29]} 21. Bxa6 {[%clk 0:01:30]}  Rxa6 {[%clk 0:01:29]} 22. Nb5 {[%clk 0:01:23]}  Nxb5 {[%clk 0:01:22]} 23. axb5 {[%clk 0:01:22]}  Ra2 {[%clk 0:01:18]} 24. Bb4 {[%clk 0:01:21]}  Qb6 {[%clk 0:01:07]} 25. Nd4 {[%clk 0:01:18]}  Bxd4 {[%clk 0:01:04]} 26. Qxd4 {[%clk 0:01:17]}  Qxb5 {[%clk 0:01:04]} 27. Bxc5 {[%clk 0:01:10]}  dxc5 {[%clk 0:01:01]} 28. Qe5 {[%clk 0:01:03]}  c4 {[%clk 0:00:54]} 29. Qxe7 {[%clk 0:01:02]}  Rfa8 {[%clk 0:00:38]} 30. Qf6 {[%clk 0:00:57]}  b2 {[%clk 0:00:25]} 31. Kg2 {[%clk 0:00:54]}  R8a6 {[%clk 0:00:15]} 32. d6 {[%clk 0:00:52]}  Qb7 {[%clk 0:00:05]} 33. Rf3 {[%clk 0:00:41]}  Rb6 {[%clk 0:00:04]} 34. e5 {[%clk 0:00:33]}  Qd7 {[%clk 0:00:02]} 35. h4 {[%clk 0:00:27]} 1-0


[Site "https://www.chess.com"]